[Event "Liberia Championship 2023"]
[Site "Monrovia"]
[Date "2024.01.19"]
[Round "5.2"]
[White "Thomas, Saah"]
[Black "Barcon, Harmon"]
[Result "1/2-1/2"]
[ECO "C56"]
[WhiteElo "1889"]
[BlackElo "1902"]
[Annotator "NA RC"]
[PlyCount "105"]
[EventDate "2024.01.16"]
[EventType "swiss"]
[EventCountry "LBR"]
[SourceTitle "playchess.com"]
[Source "ChessBase"]
[SourceQuality "1"]
[TimeControl "40/5400+30:1800+30"]

1. e4 {[%emt 0:17:45]} e5 {[%emt 0:00:06]} 2. Nf3 {[%emt 0:00:08]} Nc6 {[%emt 0:00:04]} 3. Bc4 {[%emt 0:00:21]} Nf6 {[%emt 0:00:07]} 4. O-O {[%emt 0:00:35]} Bc5 {[%emt 0:00:20]} 5. c3 {[%emt 0:00:54]} d6 {[%emt 0:02:59]} 6. d4 {[%emt 0:00:49]} exd4 {[%emt 0:02:10]} 7. cxd4 {[%emt 0:00:12]} Bb6 {[%emt 0:00:07]} 8. d5 {[%emt 0:03:28]} Ne7 {[%emt 0:00:41]} 9. Nc3 {[%emt 0:00:30]} O-O {[%emt 0:00:20]} 10. h3 {[%emt 0:00:09]} Ng6 {[%emt 0:00:18]} 11. a4 {[%emt 0:00:23]} a5 {[%emt 0:01:49]} 12. Kh2 {[%emt 0:00:41]} Re8 {[%emt 0:00:28]} 13. Qc2 {[%emt 0:00:27]} h6 {[%emt 0:02:04]} 14. Bd2 {[%emt 0:03:04]} Bd7 {[%emt 0:02:17]} 15. Rae1 {[%emt 0:00:34]} Nh5 {[%emt 0:03:47]} 16. Ne2 {[%emt 0:04:28]} Nh4 {[%emt 0:03:43]} 17. Nfd4 {[%emt 0:01:11]} Qf6 {[%emt 0:24:03]} 18. Qd3 {[%emt 0:02:36]} Qe5+ {[%emt 0:11:52]} 19. g3 {[%emt 0:03:33]} Ng6 {[%emt 0:04:06]} 20. Ne6 {[%emt 0:08:34]} fxe6 {[%emt 0:05:39]} 21. Bc3 {[%emt 0:00:06]} Qg5 {[%emt 0:00:22]} 22. f4 {[%emt 0:00:03]} Qe7 {[%emt 0:01:26]} 23. dxe6 {[%emt 0:00:06]} Bxe6 {[%emt 0:08:05]} 24. f5 {[%emt 0:00:02]} Bxc4 {[%emt 0:02:00]} 25. Qxc4+ {[%emt 0:00:03]} Qf7 {[%emt 0:00:58]} 26. Qxf7+ {[%emt 0:00:37]} Kxf7 {[%emt 0:00:01]} 27. g4 {[%emt 0:01:11]} Nf6 {[%emt 0:01:09]} 28. fxg6+ {[%emt 0:00:11]} Kxg6 {[%emt 0:02:35]} 29. Nf4+ {[%emt 0:00:08]} Kh7 {[%emt 0:01:47]} 30. Bxf6 {[%emt 0:00:25]} gxf6 {[%emt 0:00:03]} 31. Nh5 {[%emt 0:00:02]} Bd4 {[%emt 0:01:01]} 32. Nxf6+ {[%emt 0:00:31]} Bxf6 {[%emt 0:00:10]} 33. Rxf6 {[%emt 0:00:05]} Re7 {[%emt 0:01:58]} 34. Kg3 {[%emt 0:00:03]} Kg7 {[%emt 0:00:34]} 35. Rf5 {[%emt 0:00:04]} Ra6 {[%emt 0:02:02]} 36. Re2 {[%emt 0:00:59]} Rf7 {[%emt 0:06:01]} 37. Rd5 {[%emt 0:02:34]} Ra8 {[%emt 0:00:35]} 38. h4 {[%emt 0:00:27]} b6 {[%emt 0:00:06]} 39. Rf5 {[%emt 0:03:02]} Re8 {[%emt 0:00:22]} 40. Kf4 {[%emt 0:00:00]} Re5 {[%emt 0:00:00]} 41. Rd2 {[%emt 0:02:08]} Rc5 {[%emt 0:03:26]} 42. g5 {[%emt 0:01:30]} hxg5+ {[%emt 0:02:21]} 43. hxg5 {[%emt 0:00:32]} Rc4 {[%emt 0:01:33]} 44. g6 {[%emt 0:01:22]} Rxf5+ {[%emt 0:02:19]} 45. Kxf5 {[%emt 0:00:32]} Rc5+ {[%emt 0:01:52]} 46. Rd5 {[%emt 0:00:47]} Rc2 {[%emt 0:00:55]} 47. e5 {[%emt 0:02:45]} Rf2+ {[%emt 0:00:46]} 48. Ke6 {[%emt 0:00:39]} dxe5 {[%emt 0:01:29]} 49. Kxe5 {[%emt 0:02:38]} Rxb2 {[%emt 0:01:10]} 50. Rd7+ {[%emt 0:00:34]} Kxg6 {[%emt 0:01:12]} 51. Rxc7 {[%emt 0:00:32]} Rb4 {[%emt 0:00:47]} 52. Kd5 {[%emt 0:00:51]} Rxa4 {[%emt 0:01:28]} 53. Rc6+ {[%emt 0:00:32]} 1/2-1/2

[Event "Liberia Championship 2023"]
[Site "Monrovia"]
[Date "2024.01.19"]
[Round "5.3"]
[White "David Leroy Debblay"]
[Black "John Jallah"]
[Result "1-0"]
[ECO "B18"]
[WhiteElo "1791"]
[BlackElo "1761"]
[Annotator "NA RC"]
[PlyCount "103"]
[EventDate "2024.01.16"]
[EventType "swiss"]
[EventCountry "LBR"]
[SourceTitle "playchess.com"]
[Source "ChessBase"]
[SourceQuality "1"]
[TimeControl "40/5400+30:1800+30"]

1. e4 {[%emt 0:00:02]} c6 {[%emt 0:02:52]} 2. d4 {[%emt 0:00:38]} d5 {[%emt 0:00:15]} 3. Nc3 {[%emt 0:00:16]} dxe4 {[%emt 1:28:53]} 4. Nxe4 {[%emt 1:31:34]} Bf5 {[%emt 0:00:00]} 5. Ng3 {[%emt 0:00:00]} Bg6 {[%emt 0:00:00]} 6. Nf3 {[%emt 0:00:00]} h6 {[%emt 0:00:00]} 7. Bd3 {[%emt 0:00:00]} Bxd3 {[%emt 0:00:00]} 8. Qxd3 {[%emt 0:00:00]} e6 {[%emt 0:00:00]} 9. Bf4 {[%emt 0:00:00]} Nf6 {[%emt 0:00:00]} 10. O-O {[%emt 0:00:00]} Be7 {[%emt 0:00:00]} 11. c4 {[%emt 0:00:00]} O-O {[%emt 0:00:00]} 12. Rad1 {[%emt 0:00:00]} Nbd7 {[%emt 0:00:00]} 13. Ne5 {[%emt 0:00:00]} Qa5 {[%emt 0:00:00]} 14. a3 {[%emt 0:00:00]} c5 {[%emt 0:00:00]} 15. Nxd7 {[%emt 0:00:00]} Nxd7 {[%emt 0:00:00]} 16. d5 {[%emt 0:00:00]} exd5 {[%emt 0:00:00]} 17. cxd5 {[%emt 0:00:00]} Bf6 {[%emt 0:00:00]} 18. Bd2 {[%emt 0:00:00]} Qb6 {[%emt 0:00:00]} 19. Bc3 {[%emt 0:00:00]} Rfe8 {[%emt 0:00:00]} 20. Nf5 {[%emt 0:00:00]} Bxc3 {[%emt 0:00:00]} 21. bxc3 {[%emt 0:00:00]} Qg6 {[%emt 0:00:00]} 22. d6 {[%emt 0:00:00]} Kh8 {[%emt 0:00:00]} 23. Ne7 {[%emt 0:00:00]} Qxd3 {[%emt 0:00:00]} 24. Rxd3 {[%emt 0:00:00]} Rad8 {[%emt 0:00:00]} 25. Rfd1 {[%emt 0:00:00]} b6 {[%emt 0:00:00]} 26. Nc6 {[%emt 0:00:00]} Ra8 {[%emt 0:00:00]} 27. f4 {[%emt 0:00:00]} f6 {[%emt 0:00:00]} 28. Ne7 {[%emt 0:00:00]} Kh7 {[%emt 0:00:00]} 29. Kf2 {[%emt 0:00:00]} g6 {[%emt 0:00:00]} 30. Kf3 {[%emt 0:00:00]} f5 {[%emt 0:00:00]} 31. g4 {[%emt 0:00:00]} fxg4+ {[%emt 0:00:00]} 32. Ke4 {[%emt 0:00:00]} Nf6+ {[%emt 0:00:00]} 33. Ke5 {[%emt 0:00:00]} Kg7 {[%emt 0:00:00]} 34. Ke6 {[%emt 0:00:00]} Ng8 {[%emt 0:00:00]} 35. Re3 {[%emt 0:00:00]} Kf8 {[%emt 0:00:00]} 36. Kd7 {[%emt 0:00:00]} Kf7 {[%emt 0:00:00]} 37. Rde1 {[%emt 0:00:00]} Nf6+ {[%emt 0:00:00]} 38. Kc6 {[%emt 0:00:00]} Rad8 {[%emt 0:00:00]} 39. Re6 {[%emt 0:00:00]} h5 {[%emt 0:03:17]} 40. a4 {[%emt 0:00:00]} h4 {[%emt 0:00:36]} 41. a5 {[%emt 0:00:00]} g3 {[%emt 0:01:27]} 42. hxg3 {[%emt 0:00:00]} hxg3 {[%emt 0:00:41]} 43. R6e3 {[%emt 0:00:00]} Nh5 {[%emt 0:05:06]} 44. d7 {[%emt 0:00:00]} Rf8 {[%emt 0:04:57]} 45. Nd5 {[%emt 0:00:00]} Kg8 {[%emt 0:04:34]} 46. Re8 {[%emt 0:00:00]} Ng7 {[%emt 0:01:17]} 47. Nf6+ {[%emt 0:00:00]} Kf7 {[%emt 0:01:13]} 48. Rxf8+ {[%emt 0:00:00]} Rxf8 {[%emt 0:04:46]} 49. Ne8 {[%emt 0:00:00]} Rxe8 {[%emt 0:10:08]} 50. Rxe8 {[%emt 0:00:00]} g2 {[%emt 0:15:28]} 51. d8=Q {[%emt 0:53:30]} g1=Q {[%emt 0:00:00]} 52. Qe7# {[%emt 0:00:00]} 1-0

[Event "Liberia Championship 2023"]
[Site "Monrovia"]
[Date "2024.01.19"]
[Round "5.4"]
[White "Obediah Saah"]
[Black "Bobby Ballah"]
[Result "1-0"]
[ECO "D05"]
[WhiteElo "1756"]
[BlackElo "1913"]
[Annotator "RC"]
[PlyCount "119"]
[EventDate "2024.01.16"]
[EventType "swiss"]
[EventCountry "LBR"]
[SourceTitle "playchess.com"]
[Source "ChessBase"]
[SourceQuality "1"]
[TimeControl "40/5400+30:1800+30"]

1. d4 {[%emt 1:31:00]} Nf6 {[%emt 1:31:00]} 2. Nf3 {[%emt 0:00:00]} b6 {[%emt 0:00:00]} 3. e3 {[%emt 0:00:00]} Bb7 {[%emt 0:00:00]} 4. Bd3 {[%emt 0:00:00]} d5 {[%emt 0:00:00]} 5. Nbd2 {[%emt 0:00:00]} e6 {[%emt 0:00:00]} 6. Qe2 {[%emt 0:00:00]} Bd6 {[%emt 0:00:00]} 7. e4 {[%emt 0:00:00]} dxe4 {[%emt 0:00:00]} 8. Nxe4 {[%emt 0:00:00]} O-O {[%emt 0:00:00]} 9. O-O {[%emt 0:00:00]} Nxe4 {[%emt 0:00:00]} 10. Bxe4 {[%emt 0:00:00]} Bxe4 {[%emt 0:00:00]} 11. Qxe4 {[%emt 0:00:00]} Nd7 {[%emt 0:00:00]} 12. Bg5 {[%emt 0:00:00]} Nf6 {[%emt 0:00:00]} 13. Qe2 {[%emt 0:00:00]} h6 {[%emt 0:00:00]} 14. Bh4 {[%emt 0:00:00]} Be7 {[%emt 0:00:00]} 15. c3 {[%emt 0:00:00]} Nd7 {[%emt 0:00:00]} 16. Bg3 {[%emt 0:00:00]} Bf6 {[%emt 0:00:00]} 17. Rfd1 {[%emt 0:00:00]} Re8 {[%emt 0:00:00]} 18. Qc4 {[%emt 0:00:00]} c5 {[%emt 0:00:00]} 19. dxc5 {[%emt 0:00:00]} Qc8 {[%emt 0:00:00]} 20. c6 {[%emt 0:00:00]} Nc5 {[%emt 0:00:00]} 21. Qb5 {[%emt 0:00:00]} e5 {[%emt 0:00:00]} 22. b4 {[%emt 0:00:00]} Ne4 {[%emt 0:00:00]} 23. Qc4 {[%emt 0:00:00]} Nxg3 {[%emt 0:00:00]} 24. hxg3 {[%emt 0:00:00]} e4 {[%emt 0:00:00]} 25. Nd4 {[%emt 0:00:00]} e3 {[%emt 0:00:00]} 26. f3 {[%emt 0:00:00]} Qc7 {[%emt 0:00:00]} 27. Ne2 {[%emt 0:00:00]} Rad8 {[%emt 0:00:00]} 28. b5 {[%emt 0:00:00]} Re5 {[%emt 0:00:00]} 29. a4 {[%emt 0:00:00]} Rc5 {[%emt 0:00:00]} 30. Qf4 {[%emt 0:00:00]} Qc8 {[%emt 0:02:51]} 31. Rxd8+ {[%emt 0:00:00]} Qxd8 {[%emt 0:00:14]} 32. Qxe3 {[%emt 0:00:00]} Rxc3 {[%emt 0:00:25]} 33. Qf4 {[%emt 0:00:39]} Rc2 {[%emt 0:00:54]} 34. Re1 {[%emt 0:01:51]} Rxe2 {[%emt 0:12:06]} 35. Rxe2 {[%emt 0:03:11]} Qd1+ {[%emt 0:00:00]} 36. Kh2 {[%emt 0:11:49]} Qxe2 {[%emt 0:01:00]} 37. Qb8+ {[%emt 0:00:00]} Kh7 {[%emt 0:00:00]} 38. c7 {[%emt 0:00:00]} Be5 {[%emt 0:00:00]} 39. Qd8 {[%emt 0:00:00]} Qe1 {[%emt 0:00:19]} 40. f4 {[%emt 0:01:08]} Bxc7 {[%emt 0:00:50]} 41. Qxc7 {[%emt 0:30:12]} Qd1 {[%emt 0:00:15]} 42. Qc4 {[%emt 0:00:00]} Qh5+ {[%emt 0:00:00]} 43. Kg1 {[%emt 0:00:00]} Qd1+ {[%emt 0:04:29]} 44. Kf2 {[%emt 0:00:00]} f5 {[%emt 0:01:31]} 45. Qf7 {[%emt 0:00:00]} Qd2+ {[%emt 0:03:35]} 46. Kg1 {[%emt 0:00:00]} Qd1+ {[%emt 0:00:36]} 47. Kh2 {[%emt 0:00:00]} Qxa4 {[%emt 0:05:08]} 48. Qxf5+ {[%emt 0:00:00]} Kg8 {[%emt 0:01:17]} 49. g4 {[%emt 0:00:00]} Qd1 {[%emt 0:02:50]} 50. Qe6+ {[%emt 0:00:00]} Kh7 {[%emt 0:01:12]} 51. Qf5+ {[%emt 0:00:00]} Kh8 {[%emt 0:01:44]} 52. g5 {[%emt 0:00:00]} hxg5 {[%emt 0:02:08]} 53. fxg5 {[%emt 0:00:00]} Qd6+ {[%emt 0:00:57]} 54. Kh3 {[%emt 0:00:00]} Qc5 {[%emt 0:01:45]} 55. Qxc5 {[%emt 0:00:00]} bxc5 {[%emt 0:00:38]} 56. Kg3 {[%emt 0:00:00]} Kh7 {[%emt 0:09:29]} 57. Kf3 {[%emt 0:00:19]} Kg6 {[%emt 0:00:45]} 58. Ke4 {[%emt 0:00:40]} Kxg5 {[%emt 0:01:07]} 59. Kd5 {[%emt 0:00:38]} Kg4 {[%emt 0:00:40]} 60. Kxc5 {[%emt 0:00:32]} 1-0

[Event "Liberia Championship 2023"]
[Site "Monrovia"]
[Date "2024.01.19"]
[Round "5.5"]
[White "Anthony Waylea, Jr."]
[Black "Miller Moore"]
[Result "1-0"]
[ECO "B90"]
[WhiteElo "1939"]
[BlackElo "1677"]
[Annotator "NA RC"]
[PlyCount "117"]
[EventDate "2024.01.16"]
[EventType "swiss"]
[EventCountry "LBR"]
[SourceTitle "playchess.com"]
[Source "ChessBase"]
[SourceQuality "1"]
[TimeControl "40/5400+30:1800+30"]

1. e4 {[%emt 0:21:04]} c5 {[%emt 1:00:14]} 2. Nf3 {[%emt 0:00:14]} d6 {[%emt 0:00:18]} 3. d4 {[%emt 0:00:15]} cxd4 {[%emt 0:00:10]} 4. Nxd4 {[%emt 1:10:57]} a6 {[%emt 0:31:48]} 5. a4 {[%emt 0:00:00]} Nd7 {[%emt 0:00:00]} 6. Nc3 {[%emt 0:00:00]} g6 {[%emt 0:00:00]} 7. Be2 {[%emt 0:00:00]} Bg7 {[%emt 0:00:00]} 8. Be3 {[%emt 0:00:00]} Ngf6 {[%emt 0:00:00]} 9. O-O {[%emt 0:00:00]} O-O {[%emt 0:00:00]} 10. Qd2 {[%emt 0:00:00]} Nc5 {[%emt 0:00:00]} 11. f3 {[%emt 0:00:00]} Qc7 {[%emt 0:00:00]} 12. Kh1 {[%emt 0:00:00]} Bd7 {[%emt 0:00:00]} 13. Bh6 {[%emt 0:00:00]} Rac8 {[%emt 0:00:00]} 14. Rfc1 {[%emt 0:00:00]} Qa5 {[%emt 0:00:00]} 15. Nd5 {[%emt 0:00:00]} Qd8 {[%emt 0:00:00]} 16. Nxf6+ {[%emt 0:00:00]} exf6 {[%emt 0:00:00]} 17. Bxg7 {[%emt 0:00:00]} Kxg7 {[%emt 0:00:00]} 18. b3 {[%emt 0:00:00]} Ne6 {[%emt 0:00:00]} 19. Bc4 {[%emt 0:07:30]} Nxd4 {[%emt 0:00:00]} 20. Qxd4 {[%emt 0:00:00]} Be6 {[%emt 0:00:00]} 21. Bd5 {[%emt 0:00:00]} Bxd5 {[%emt 0:00:00]} 22. Qxd5 {[%emt 0:00:00]} Qb6 {[%emt 0:00:00]} 23. Qd3 {[%emt 0:00:00]} Rc5 {[%emt 0:00:00]} 24. c4 {[%emt 0:00:00]} a5 {[%emt 0:00:00]} 25. Rd1 {[%emt 0:00:00]} Rd8 {[%emt 0:00:00]} 26. Qc3 {[%emt 0:00:00]} Qb4 {[%emt 0:11:00]} 27. Qxb4 {[%emt 0:00:00]} axb4 {[%emt 0:00:00]} 28. Rd3 {[%emt 0:00:00]} Kf8 {[%emt 0:00:00]} 29. Rad1 {[%emt 0:00:00]} Ke7 {[%emt 0:00:00]} 30. Rd5 {[%emt 0:00:00]} b6 {[%emt 0:00:00]} 31. Kg1 {[%emt 0:00:00]} Ke6 {[%emt 0:00:00]} 32. Kf2 {[%emt 0:00:00]} Rd7 {[%emt 0:00:00]} 33. f4 {[%emt 0:00:00]} Ke7 {[%emt 0:00:00]} 34. Ke3 {[%emt 0:00:00]} Ke6 {[%emt 0:00:00]} 35. g4 {[%emt 0:00:00]} h6 {[%emt 0:00:00]} 36. Kd4 {[%emt 0:00:00]} g5 {[%emt 0:00:00]} 37. Ke3 {[%emt 0:00:00]} Ke7 {[%emt 0:00:00]} 38. Kf2 {[%emt 0:00:00]} Rd8 {[%emt 0:00:00]} 39. Kf3 {[%emt 0:00:00]} Rd7 {[%emt 0:00:00]} 40. h4 {[%emt 0:00:00]} Rd8 {[%emt 0:00:00]} 41. h5 {[%emt 0:00:00]} Rd7 {[%emt 0:00:00]} 42. fxg5 {[%emt 0:00:00]} fxg5 {[%emt 0:00:00]} 43. e5 {[%emt 0:00:00]} Rxd5 {[%emt 0:00:00]} 44. Rxd5 {[%emt 0:00:00]} dxe5 {[%emt 0:00:00]} 45. Rxe5+ {[%emt 0:00:00]} Kf6 {[%emt 0:00:00]} 46. Rf5+ {[%emt 0:00:00]} Ke6 {[%emt 0:00:00]} 47. Ke4 {[%emt 0:00:00]} Rd1 {[%emt 0:00:00]} 48. Rb5 {[%emt 0:00:00]} Re1+ {[%emt 0:00:00]} 49. Kf3 {[%emt 0:00:00]} f6 {[%emt 0:00:00]} 50. Rxb6+ {[%emt 0:00:00]} Ke5 {[%emt 0:00:00]} 51. Rxb4 {[%emt 0:00:00]} Kd4 {[%emt 0:00:00]} 52. a5 {[%emt 0:00:00]} Kd3 {[%emt 0:00:00]} 53. Rb6 {[%emt 0:00:00]} Rf1+ {[%emt 0:02:49]} 54. Kg2 {[%emt 0:00:00]} Re1 {[%emt 0:00:44]} 55. Rxf6 {[%emt 0:00:00]} Re2+ {[%emt 0:00:52]} 56. Rf2 {[%emt 0:00:00]} Re4 {[%emt 0:01:18]} 57. Kg3 {[%emt 0:00:00]} Re5 {[%emt 0:01:13]} 58. Ra2 {[%emt 0:00:00]} Kc3 {[%emt 0:00:50]} 59. a6 {[%emt 0:00:44]} 1-0

[Event "Liberia Championship 2023"]
[Site "Monrovia"]
[Date "2024.01.19"]
[Round "5.6"]
[White "Alfred J. Kollie"]
[Black "Joel O. Ebiekuta"]
[Result "0-1"]
[ECO "D00"]
[WhiteElo "1612"]
[BlackElo "1875"]
[Annotator "NA RC"]
[PlyCount "92"]
[EventDate "2024.01.16"]
[EventType "swiss"]
[EventCountry "LBR"]
[SourceTitle "playchess.com"]
[Source "ChessBase"]
[SourceQuality "1"]
[TimeControl "40/5400+30:1800+30"]

1. d4 {[%emt 0:18:02]} d5 {[%emt 0:29:02]} 2. Bg5 {[%emt 0:00:12]} c6 {[%emt 0:00:07]} 3. c3 {[%emt 0:00:53]} Bf5 {[%emt 0:00:04]} 4. Nd2 {[%emt 0:00:27]} Nd7 {[%emt 0:00:04]} 5. f3 {[%emt 0:00:13]} Ngf6 {[%emt 0:00:02]} 6. e3 {[%emt 0:00:46]} Bg6 {[%emt 0:00:05]} 7. b4 {[%emt 0:00:34]} e5 {[%emt 0:00:30]} 8. Nh3 {[%emt 0:00:41]} exd4 {[%emt 0:00:05]} 9. exd4 {[%emt 0:00:28]} Be7 {[%emt 0:00:15]} 10. Be2 {[%emt 0:00:04]} O-O {[%emt 0:00:25]} 11. O-O {[%emt 0:00:23]} Re8 {[%emt 0:00:06]} 12. Nb3 {[%emt 0:00:57]} Nb6 {[%emt 0:00:22]} 13. Nc5 {[%emt 1:13:20]} Qc7 {[%emt 1:05:53]} 14. Bf4 {[%emt 0:00:00]} Bd6 {[%emt 0:00:30]} 15. Bxd6 {[%emt 0:00:00]} Qxd6 {[%emt 0:00:00]} 16. Bd3 {[%emt 0:00:00]} Bxd3 {[%emt 0:01:00]} 17. Qxd3 {[%emt 0:00:00]} Qc7 {[%emt 0:00:00]} 18. Rae1 {[%emt 0:02:30]} Nc4 {[%emt 0:00:00]} 19. g3 b6 {[%emt 0:01:30]} 20. Nb3 {[%emt 0:00:00]} Re7 {[%emt 0:00:00]} 21. Kf2 Rae8 {[%emt 0:01:00]} 22. Rxe7 {[%emt 0:00:00]} Qxe7 {[%emt 0:00:30]} 23. Nc1 {[%emt 0:02:30]} h6 {[%emt 0:00:30]} 24. Nf4 {[%emt 0:00:00]} g5 {[%emt 0:00:30]} 25. Ng2 {[%emt 0:01:00]} Qd7 {[%emt 0:00:00]} 26. Re1 Re6 {[%emt 0:01:00]} 27. Rxe6 {[%emt 0:00:00]} Qxe6 {[%emt 0:00:00]} 28. g4 {[%emt 0:00:00]} Kg7 {[%emt 0:01:00]} 29. h4 {[%emt 0:02:00]} Nh7 {[%emt 0:00:00]} 30. Ne2 Nf8 {[%emt 0:01:00]} 31. Ng3 {[%emt 0:01:00]} Ng6 {[%emt 0:00:00]} 32. Nf5+ {[%emt 0:00:30]} Kf8 {[%emt 0:01:00]} 33. h5 {[%emt 0:00:30]} Ne7 {[%emt 0:00:30]} 34. Nge3 {[%emt 0:00:30]} Nxe3 {[%emt 0:00:00]} 35. Nxe3 {[%emt 0:00:30]} Kg7 {[%emt 0:00:00]} 36. a4 {[%emt 0:00:00]} Qc8 {[%emt 0:00:00]} 37. Ng2 {[%emt 0:00:00]} f5 {[%emt 0:00:00]} 38. Qe2 {[%emt 0:00:00]} Kf7 {[%emt 0:00:00]} 39. Kg3 {[%emt 0:00:00]} Qc7+ {[%emt 0:00:00]} 40. f4 {[%emt 0:00:00]} fxg4 {[%emt 0:00:00]} 41. Qe5 {[%emt 0:00:00]} Qxe5 {[%emt 0:00:00]} 42. fxe5 {[%emt 0:00:00]} Nf5+ {[%emt 0:00:00]} 43. Kxg4 {[%emt 0:00:00]} Ke6 {[%emt 0:00:00]} 44. Kf3 {[%emt 0:00:00]} c5 {[%emt 0:00:00]} 45. Ne3 {[%emt 0:00:00]} cxb4 {[%emt 0:00:00]} 46. Nxf5 {[%emt 0:00:00]} b3 {[%emt 0:00:00]} 0-1

[Event "Liberia Championship 2023"]
[Site "Monrovia"]
[Date "2024.01.19"]
[Round "5.7"]
[White "Kennedy Zinnah Kengo"]
[Black "James, Tondo"]
[Result "1/2-1/2"]
[ECO "C47"]
[WhiteElo "1789"]
[BlackElo "1837"]
[Annotator "NA RC"]
[PlyCount "142"]
[EventDate "2024.01.16"]
[EventType "swiss"]
[EventCountry "LBR"]
[SourceTitle "playchess.com"]
[Source "ChessBase"]
[SourceQuality "1"]
[TimeControl "40/5400+30:1800+30"]

1. e4 {[%emt 0:00:02]} e5 {[%emt 0:07:50]} 2. Nf3 {[%emt 0:00:22]} Nc6 {[%emt 0:00:03]} 3. Nc3 {[%emt 0:00:13]} Nf6 {[%emt 0:00:37]} 4. d4 {[%emt 0:00:20]} Bb4 {[%emt 0:02:29]} 5. dxe5 {[%emt 0:00:49]} Nxe4 {[%emt 0:00:39]} 6. Qd3 {[%emt 0:00:51]} d5 {[%emt 0:07:12]} 7. exd6 {[%emt 0:00:37]} O-O {[%emt 0:07:47]} 8. Be2 {[%emt 0:00:36]} Nxc3 {[%emt 0:01:39]} 9. bxc3 {[%emt 0:00:13]} Bf5 {[%emt 0:04:08]} 10. Qc4 {[%emt 0:00:39]} Bxd6 {[%emt 0:00:33]} 11. Bd3 {[%emt 0:00:36]} Qe7+ {[%emt 0:06:48]} 12. Be3 {[%emt 0:00:15]} Ne5 {[%emt 0:00:36]} 13. Nxe5 {[%emt 0:00:17]} Qxe5 {[%emt 0:00:06]} 14. Qd4 {[%emt 0:00:50]} Rfe8 {[%emt 0:09:10]} 15. Qxe5 {[%emt 0:00:51]} Rxe5 {[%emt 0:00:19]} 16. Kd2 {[%emt 0:00:20]} Rd8 {[%emt 0:03:33]} 17. Rhb1 {[%emt 0:00:46]} b6 {[%emt 0:04:50]} 18. a4 {[%emt 0:03:12]} Bc5 {[%emt 0:05:01]} 19. Bxc5 {[%emt 0:00:15]} Rxc5 {[%emt 0:00:40]} 20. Rb5 {[%emt 0:00:06]} Rcd5 {[%emt 0:07:00]} 21. c4 {[%emt 0:00:52]} Rxb5 {[%emt 0:02:24]} 22. axb5 {[%emt 0:00:11]} Bxd3 {[%emt 0:01:11]} 23. cxd3 {[%emt 0:00:09]} Ra8 {[%emt 0:00:16]} 24. Kc3 {[%emt 0:00:11]} Kf8 {[%emt 0:00:01]} 25. Kb4 {[%emt 0:00:08]} Ke7 {[%emt 0:00:15]} 26. d4 {[%emt 0:00:10]} Kd6 {[%emt 0:00:38]} 27. c5+ {[%emt 0:00:18]} Kd5 {[%emt 0:00:09]} 28. Re1 {[%emt 0:02:00]} Kxd4 {[%emt 0:06:02]} 29. Rd1+ {[%emt 0:00:29]} Ke5 {[%emt 0:00:35]} 30. Rd7 {[%emt 0:00:06]} Ke6 {[%emt 0:06:44]} 31. c6 {[%emt 0:00:18]} a5+ {[%emt 0:02:02]} 32. Ka4 {[%emt 0:04:00]} Rc8 {[%emt 0:04:07]} 33. f4 {[%emt 0:00:19]} h5 {[%emt 0:00:26]} 34. g3 {[%emt 0:00:14]} g6 {[%emt 0:00:44]} 35. h3 {[%emt 0:00:09]} Kf6 {[%emt 0:03:14]} 36. g4 {[%emt 0:00:12]} hxg4 {[%emt 0:00:49]} 37. hxg4 {[%emt 0:00:06]} Ke6 {[%emt 0:01:25]} 38. Kb3 {[%emt 0:01:02]} Kf6 {[%emt 0:01:41]} 39. f5 {[%emt 0:00:40]} Kg7 {[%emt 0:02:44]} 40. fxg6 {[%emt 0:00:00]} Kxg6 {[%emt 0:00:00]} 41. g5 {[%emt 0:02:14]} Kg7 {[%emt 0:02:16]} 42. Kc4 {[%emt 0:00:43]} Kf8 {[%emt 0:01:43]} 43. Kd4 {[%emt 0:00:45]} Kg7 {[%emt 0:03:48]} 44. Ke5 {[%emt 0:02:22]} Kg6 {[%emt 0:02:35]} 45. Ke4 {[%emt 0:00:51]} a4 {[%emt 0:02:41]} 46. Kd3 {[%emt 0:00:47]} a3 {[%emt 0:00:37]} 47. Kc2 {[%emt 0:00:41]} a2 {[%emt 0:00:34]} 48. Kb2 {[%emt 0:00:42]} Ra8 {[%emt 0:00:36]} 49. Ka1 {[%emt 0:00:35]} Ra7 {[%emt 0:00:40]} 50. Re7 {[%emt 0:01:45]} Kg7 {[%emt 0:02:22]} 51. Rd7 {[%emt 0:01:18]} Kf8 {[%emt 0:00:43]} 52. Rd8+ {[%emt 0:01:42]} Ke7 {[%emt 0:00:37]} 53. Rd5 {[%emt 0:01:22]} Ke6 {[%emt 0:03:04]} 54. Rd7 {[%emt 0:00:39]} Ra5 {[%emt 0:02:16]} 55. Rxc7 {[%emt 0:01:07]} Rxb5 {[%emt 0:00:39]} 56. Rb7 {[%emt 0:02:35]} Rxg5 {[%emt 0:03:30]} 57. Kxa2 {[%emt 0:00:57]} Rc5 {[%emt 0:02:50]} 58. Rxb6 {[%emt 0:00:48]} Kd5 {[%emt 0:01:58]} 59. Rb7 {[%emt 0:00:38]} f5 {[%emt 0:01:14]} 60. c7 {[%emt 0:00:38]} Ke4 {[%emt 0:02:24]} 61. Kb2 {[%emt 0:00:44]} f4 {[%emt 0:00:47]} 62. Rb4+ {[%emt 0:00:36]} Kf5 {[%emt 0:01:38]} 63. Rb7 {[%emt 0:01:06]} f3 {[%emt 0:00:56]} 64. Kb3 {[%emt 0:00:44]} Ke4 {[%emt 0:02:38]} 65. Rb4+ {[%emt 0:00:50]} Kd3 {[%emt 0:00:36]} 66. Rf4 {[%emt 0:01:01]} Ke3 {[%emt 0:01:21]} 67. Rc4 {[%emt 0:00:40]} Rxc4 {[%emt 0:01:54]} 68. Kxc4 {[%emt 0:00:50]} f2 {[%emt 0:00:32]} 69. c8=Q {[%emt 0:00:41]} f1=Q+ {[%emt 0:00:33]} 70. Kb4 {[%emt 0:00:50]} Qb1+ {[%emt 0:00:47]} 71. Ka5 {[%emt 0:00:40]} Qa2+ {[%emt 0:00:35]} 1/2-1/2